bitfinex-derivatives/quotes_SOLF0:USTF0_20260115
["timestamp","ask_amount","ask_price","bid_price","bid_amount"]
[1768490156470,6.2678,143.64,143.52,3.25298042]
[1768490156676,5.54806615,143.65,143.52,3.25298042]
[1768490157374,5.54806615,143.65,143.57,0.04633679]
[1768490157876,6.2677,143.64,143.57,0.04633679]
[1768490159770,6.2682,143.63,143.57,0.04633679]
[1768490160075,179.8361,143.67,143.55,3.25298042]
[1768490160273,97.5291,143.59,143.47,3.25298042]
[1768490160474,97.5441,143.57,143.47,3.25298042]
[1768490160979,6.2718,143.55,143.47,3.25298042]
[1768490161177,97.5364,143.58,143.47,3.25298042]
[1768490161382,5.54806615,143.59,143.47,3.25298042]
[1768490161671,82.34,143.6,143.47,3.25298042]
[1768490161672,82.34,143.6,143.51,0.05172641]
[1768490162078,82.34,143.6,143.47,3.25298042]
[1768490162273,82.34,143.6,143.54,0.04829755]
[1768490162870,88.6094,143.6,143.54,0.04829755]
[1768490163075,5.54806615,143.62,143.54,0.04829755]
[1768490163775,11.81666615,143.62,143.54,0.04829755]
[1768490164981,11.81666615,143.62,143.5,3.25298042]
[1768490164982,5.54806615,143.59,143.46,3.25298042]
[1768490165177,82.34,143.58,143.46,3.25298042]
[1768490165377,6.2717,143.55,143.46,3.25298042]
[1768490166074,97.5577,143.55,143.42,3.25298042]
[1768490166275,97.5577,143.55,143.49,0.04890154]
[1768490166473,0.05025228,143.52,143.42,3.25298042]
[1768490166674,0.05025228,143.52,143.44,3.25298042]
[1768490166880,97.5422,143.58,143.44,3.25298042]
[1768490167078,97.5498,143.56,143.44,3.25298042]
[1768490167474,6.2726,143.53,143.44,9.52898042]
[1768490167670,0.0484731,143.51,143.44,6.276]
[1768490169585,0.0484731,143.51,143.43,100.88788042]
[1768490169885,82.34,143.54,143.43,100.88788042]
[1768490170181,82.34,143.54,143.45,100.87268042]
[1768490170383,82.36,143.58,143.47,3.30000601]
[1768490170580,6.2707,143.57,143.47,3.30000601]
[1768490170780,6.2707,143.57,143.45,100.87268042]
[1768490171281,0.05219933,143.52,143.5,0.04749063]
[1768490171483,6.2707,143.57,143.5,0.04749063]
[1768490172079,6.2732,143.51,143.4,100.90678042]
[1768490172277,82.36,143.53,143.43,6.2765]
[1768490172679,82.36,143.53,143.43,3.25298042]
[1768490172882,6.2721,143.54,143.43,3.25298042]
[1768490173490,0.04872135,143.5,143.44,3.25298042]
[1768490173781,0.04872135,143.5,143.45,6.2757]
[1768490174391,6.2724,143.53,143.44,3.25298042]
[1768490174586,6.2729,143.52,143.43,6.2764]
[1768490175187,6.2729,143.52,143.44,6.2761]
[1768490175378,6.2722,143.54,143.44,3.25298042]
[1768490175781,6.2722,143.54,143.46,6.2752]
[1768490176290,82.36,143.57,143.49,0.04815555]
[1768490176679,0.04436905,143.54,143.49,0.04815555]
[1768490177085,1.44436905,143.54,143.42,3.25298042]
[1768490177390,97.5646,143.54,143.42,3.25298042]
[1768490177590,5.45280123,143.53,143.42,3.25298042]
[1768490177777,97.5646,143.54,143.42,3.25298042]
[1768490177981,5.45319016,143.53,143.42,3.25298042]
[1768490178179,6.2738,143.5,143.42,9.52978042]
[1768490178492,97.5712,143.53,143.39,3.25298042]
[1768490178493,0.04480197,143.49,143.39,3.25298042]
[1768490178683,97.5797,143.52,143.45,0.05097919]
[1768490179183,0.05002503,143.5,143.45,0.05097919]
[1768490180286,6.32392503,143.5,143.45,0.05097919]
[1768490180483,0.05002503,143.5,143.45,0.05097919]
[1768490181487,0.05002503,143.5,143.38,3.21744372]
[1768490181881,179.9493,143.51,143.38,3.21744372]
[1768490182090,97.5902,143.5,143.4,6.2776]
[1768490182297,97.5902,143.5,143.35,97.6909]
[1768490182298,97.5999,143.49,143.35,97.6909]
[1768490182491,5.46281462,143.48,143.36,3.21744372]
[1768490182695,0.04393988,143.43,143.36,3.21744372]
[1768490182892,0.04393988,143.43,143.35,97.6866]
[1768490182893,9.02528177,143.54,143.41,100.86804372]
[1768490183194,11.73548765,143.53,143.45,6.2755]
[1768490183385,82.38,143.55,143.43,3.21744372]
[1768490183586,5.46545264,143.54,143.46,3.21744372]
[1768490183794,207.5663,143.62,143.46,3.21744372]
[1768490183795,97.5211,143.61,143.46,3.21744372]
[1768490183998,92.83673233,143.6,143.48,3.21744372]
[1768490184185,0.05349503,143.55,143.51,6.273]
[1768490184387,82.38,143.6,143.53,0.04496106]
[1768490184597,82.38,143.63,143.53,0.04496106]
[1768490184897,82.38,143.63,143.51,3.18121116]
[1768490184898,5.46947017,143.62,143.51,3.18121116]
[1768490185097,82.38,143.63,143.51,3.18121116]
[1768490185298,6.2689,143.61,143.53,6.2721]
[1768490185489,179.8853,143.63,143.51,3.18121116]
[1768490185695,5.47304324,143.62,143.56,0.04575427]
[1768490185894,88.6482,143.63,143.56,0.04575427]
[1768490186195,97.4621,143.69,143.56,3.22696543]
[1768490186497,6.2668,143.66,143.58,6.2699]
[1768490186800,0.04726571,143.64,143.61,0.04434973]
[1768490189094,0.04726571,143.64,143.57,6.2703]
[1768490189499,0.04726571,143.64,143.58,6.2698]
[1768490190404,0.04726571,143.64,143.58,9.45101116]
[1768490191800,0.04726571,143.64,143.58,3.18121116]
[1768490191999,0.04726571,143.64,143.56,9.45201116]
[1768490192198,0.04726571,143.64,143.56,3.18121116]
[1768490192596,0.04726571,143.64,143.57,3.18121116]
[1768490192799,6.266,143.68,143.58,3.18121116]
[1768490193107,5.47204647,143.67,143.58,3.18121116]
[1768490193314,6.266,143.68,143.58,9.45111116]
[1768490193606,82.38,143.71,143.6,3.18121116]
[1768490193806,5.46921912,143.7,143.6,3.18121116]
[1768490194000,5.46921912,143.69,143.6,3.18121116]
[1768490194204,5.46963385,143.68,143.63,0.04773403]
[1768490194403,97.4567,143.7,143.63,0.04773403]
[1768490194701,5.470846,143.69,143.6,3.18121116]
[1768490194903,102.99307734,143.68,143.56,3.18121116]
[1768490195099,5.470846,143.67,143.56,3.18121116]
[1768490195304,6.2673,143.65,143.56,3.18121116]
[1768490195606,82.38,143.71,143.59,3.18121116]
[1768490195810,0.05037992,143.66,143.59,3.18121116]
[1768490196597,0.05037992,143.66,143.56,9.45191116]
[1768490196798,5.46896512,143.65,143.56,9.45191116]
[1768490196994,5.46819356,143.64,143.52,3.18121116]
[1768490197207,0.0501441,143.62,143.52,3.18121116]
[1768490197400,97.4898,143.65,143.52,3.18121116]
[1768490197704,5.46729998,143.64,143.52,3.18121116]
[1768490197906,11.73539998,143.63,143.54,6.2718]
[1768490198103,82.32,143.66,143.53,3.18121116]
[1768490198304,0.05009467,143.6,143.53,3.18121116]
[1768490198505,82.32,143.66,143.58,0.04728344]
[1768490198701,5.46690434,143.65,143.54,3.18121116]
[1768490198899,5.46690434,143.64,143.54,3.18121116]
[1768490199099,5.46670988,143.63,143.53,6.2721]
[1768490199397,188.83178177,143.66,143.53,6.2721]
[1768490199398,91.34528177,143.66,143.54,3.18121116]
[1768490199605,0.05003335,143.59,143.57,0.05166093]
[1768490199810,91.34528177,143.66,143.57,0.05166093]
[1768490200011,5.46711488,143.65,143.56,6.2708]
[1768490200311,72.27214728,143.66,143.56,3.18121116]
[1768490200607,3.26084357,143.72,143.59,97.5285]
[1768490200800,0.04534227,143.62,143.59,97.5285]
[1768490201000,3.26084357,143.71,143.59,179.8485]
[1768490201205,8.73062356,143.7,143.58,82.32]
[1768490201411,3.26084357,143.7,143.58,82.32]
[1768490201712,3.26084357,143.7,143.59,97.5289]
[1768490201907,3.26084357,143.7,143.58,179.8522]
[1768490202211,3.26084357,143.68,143.57,82.32]
[1768490202603,3.26084357,143.72,143.59,97.5285]
[1768490202803,8.7316916,143.71,143.59,97.5285]
[1768490203010,5.47084803,143.7,143.59,97.5285]
[1768490203309,0.04916618,143.66,143.64,0.04429698]
[1768490203499,3.26084357,143.71,143.64,0.04429698]
[1768490203696,8.72929695,143.7,143.59,97.5285]
[1768490203900,3.26084357,143.68,143.58,82.32]
[1768490204103,3.26084357,143.68,143.55,97.5552]
[1768490204305,3.26084357,143.72,143.58,9.02528177]
[1768490204506,5.46773823,143.71,143.63,97.5012]
[1768490204807,3.26084357,143.72,143.63,6.2677]
[1768490205011,0.04455164,143.68,143.66,0.04720135]
[1768490205404,221.4236,143.75,143.66,0.04720135]
[1768490205405,124.0,143.75,143.66,0.04720135]
[1768490205711,5.46778381,143.74,143.63,97.4978]
[1768490205910,5.46778381,143.73,143.63,97.4978]
[1768490206303,3.26084357,143.74,143.63,97.4978]
[1768490206506,3.26084357,143.74,143.64,6.2674]
[1768490207214,8.72688153,143.73,143.64,6.2674]
[1768490207506,3.26084357,143.73,143.68,0.0464246]
[1768490207702,4.47250055,143.73,143.68,0.0464246]
[1768490208405,3.26084357,143.76,143.68,0.0464246]
[1768490209006,3.26084357,143.76,143.68,6.3119246]
[1768490210314,3.26084357,143.76,143.68,0.0464246]
[1768490210514,0.0447454,143.73,143.68,0.0464246]
[1768490210915,0.0447454,143.73,143.68,6.3118246]
[1768490211210,1.21140391,143.77,143.68,0.0464246]
[1768490211512,173.46373766,143.79,143.67,179.7511]
[1768490211705,97.3734,143.82,143.71,97.4442]
[1768490211706,3.25633877,143.82,143.71,97.4442]
[1768490212215,1.21089808,143.84,143.74,97.4262]
[1768490212411,1.21089808,143.84,143.75,0.05358965]
[1768490212813,0.05039509,143.8,143.75,0.05358965]
[1768490217808,0.05039509,143.8,143.75,6.31598965]
[1768490219106,0.05039509,143.8,143.75,0.05358965]
[1768490221019,3.25633877,143.79,143.65,97.4828]
[1768490221418,3.25633877,143.79,143.64,97.49]
[1768490221419,3.25633877,143.79,143.68,97.4648]
[1768490221610,3.25633877,143.79,143.69,97.4572]
[1768490222521,3.25633877,143.79,143.7,97.4542]
[1768490222913,3.25633877,143.79,143.71,6.2642]
[1768490223114,3.25633877,143.79,143.69,97.4572]
[1768490223115,3.25633877,143.79,143.69,82.24]
[1768490223320,82.24,143.8,143.7,97.453]
[1768490223515,20.13194581,143.83,143.73,97.4323]
[1768490223919,16.87560704,143.83,143.77,0.04864977]
[1768490224116,16.87560704,143.83,143.79,6.2608]
[1768490224621,1.9129293,143.83,143.77,0.04864977]
[1768490224820,1.9129293,143.83,143.8,6.2603]
[1768490225215,0.04692277,143.83,143.8,6.2603]
[1768490225418,0.04692277,143.83,143.8,0.04522417]
[1768490226315,3.25633877,143.82,143.74,97.4259]
[1768490226618,2.93e-05,143.83,143.74,97.4259]
[1768490226823,2.93e-05,143.83,143.75,97.4198]
[1768490227220,2.93e-05,143.83,143.73,97.4325]
[1768490227414,2.93e-05,143.83,143.69,97.459]
[1768490227415,3.25636807,143.83,143.69,97.459]
[1768490227611,3.25636807,143.83,143.7,82.22]
[1768490228028,9.51663877,143.81,143.72,6.2638]
[1768490228236,9.51663877,143.81,143.7,179.6709]
[1768490228524,3.25633877,143.81,143.74,6.2629]
[1768490228713,3.25633877,143.81,143.7,179.6709]
[1768490229317,3.25633877,143.81,143.74,0.04654711]
[1768490229522,3.25636807,143.83,143.74,0.04654711]
[1768490229925,3.25636807,143.83,143.71,97.4424]
[1768490230123,9.51663877,143.81,143.72,6.2638]
[1768490230322,9.51663877,143.81,143.71,82.22]
[1768490230524,3.25633877,143.81,143.75,0.04543067]
[1768490230829,2.93e-05,143.83,143.75,0.04543067]
[1768490231330,2.93e-05,143.83,143.77,6.2616]
[1768490232324,2.93e-05,143.83,143.75,6.2624]
[1768490232625,2.93e-05,143.83,143.74,97.4223]
[1768490232824,2.93e-05,143.83,143.77,6.2615]
[1768490233027,2.93e-05,143.83,143.73,179.6508]
[1768490233328,3.25633877,143.81,143.73,6.2635]
[1768490233527,0.04699639,143.79,143.73,6.2635]
[1768490233731,0.04699639,143.79,143.71,82.22]
[1768490233927,3.25633877,143.81,143.71,82.22]
[1768490234429,2.93e-05,143.83,143.73,97.4308]
[1768490234826,0.05254963,143.79,143.73,97.4308]
[1768490235126,0.05254963,143.79,143.72,97.4407]
[1768490235536,0.05254963,143.79,143.76,6.2622]
[1768490235925,0.05254963,143.79,143.74,6.2628]
[1768490236234,0.05254963,143.79,143.72,97.4407]
[1768490237230,0.05254963,143.79,143.76,6.2622]
[1768490237426,2.93e-05,143.83,143.75,82.22]
[1768490237630,2.93e-05,143.83,143.76,97.4124]
[1768490238439,2.93e-05,143.83,143.75,179.6366]
[1768490238639,2.93e-05,143.83,143.78,97.3996]
[1768490238831,2.93e-05,143.83,143.79,82.22]
[1768490239334,2.93e-05,143.83,143.8,0.04906663]
[1768490240743,6.2574,143.88,143.8,6.30936663]
[1768490241034,1.21035058,143.9,143.81,97.3786]
[1768490241240,3.29303214,143.92,143.81,97.3786]
[1768490241437,5.50442528,143.91,143.85,6.258]
[1768490241741,3.29303214,143.92,143.83,82.2]
[1768490241936,5.50425003,143.91,143.87,0.04855869]
[1768490242139,85.49303214,143.95,143.87,0.04855869]
[1768490242333,3.29303214,143.98,143.87,82.24855869]
[1768490242529,9.54683214,143.96,143.87,88.50575869]
[1768490242836,3.29303214,143.96,143.85,82.2]
[1768490243238,9.54803214,143.93,143.82,5.5290269]
[1768490243438,9.54803214,143.93,143.85,82.2]
[1768490243843,124.0,143.95,143.85,82.2]
[1768490244141,3.29303214,143.96,143.86,97.3459]
[1768490244544,1.20967742,143.97,143.9,0.05192156]
[1768490245142,85.21915304,143.99,143.9,0.05192156]
[1768490245336,85.21915304,143.99,143.9,97.37072156]
[1768490245645,3.01915304,144.02,143.93,0.04709274]
[1768490245833,3.01915304,144.02,143.94,6.2542]
[1768490246034,3.01915304,144.02,143.92,82.18]
[1768490246728,3.01915304,144.0,143.9,82.18]
[1768490247329,6.2524,143.99,143.9,82.18]
[1768490247536,3.01915304,144.0,143.9,82.18]
[1768490248042,3.01915304,144.0,143.94,0.04683666]
[1768490249032,0.04518137,143.98,143.85,97.3515]
[1768490249334,3.01915304,143.98,143.88,88.4168]
[1768490249842,3.01915304,143.98,143.88,82.16]
[1768490250033,3.01915304,144.02,143.91,97.3113]
[1768490250235,1.20923606,144.03,143.94,6.2543]
[1768490250435,1.20923606,144.03,143.93,179.4579]
[1768490250636,1.20923606,144.03,143.95,97.32727077]
[1768490250836,82.16,144.06,143.98,6.2525]
[1768490251040,85.17915304,144.06,143.95,0.04617077]
[1768490251242,209.17915304,144.06,143.93,179.4579]
[1768490251541,209.17915304,144.06,143.94,82.16]
[1768490251542,3.01915304,144.05,143.94,82.16]
[1768490251745,3.01915304,144.05,143.98,0.0502614]
[1768490252346,0.05259589,144.03,143.98,0.0502614]
[1768490252551,3.01915304,144.02,143.93,82.14]
[1768490252737,3.01915304,144.02,143.92,88.3951]
[1768490252940,3.01915304,144.04,143.92,82.14]
[1768490253242,3.01915304,144.04,143.95,6.2537]
[1768490254247,9.26945304,144.04,143.95,6.2537]
[1768490254848,3.01915304,144.03,143.88,5.5290269]
[1768490255047,3.01915304,144.02,143.9,82.14]
[1768490255642,6.252,144.0,143.95,0.04642353]
[1768490255952,3.01915304,144.0,143.87,102.8680269]
[1768490256153,6.2532,143.97,143.89,6.2564]
[1768490256448,6.2532,143.97,143.88,82.14]
[1768490256449,3.01915304,143.99,143.87,82.12]
[1768490257143,0.04784783,143.94,143.87,82.12]
[1768490257344,0.04784783,143.94,143.89,6.2565]
[1768490257745,0.04784783,143.94,143.86,97.3439]
[1768490257943,0.04784783,143.94,143.9,0.04959037]
[1768490258346,0.04784783,143.94,143.86,82.12]
[1768490258756,9.27335304,143.95,143.86,6.2577]
[1768490259253,3.01915304,143.95,143.82,97.3719]
[1768490259550,0.04890495,143.9,143.83,82.12]
[1768490259751,0.04890495,143.9,143.87,0.048003]
[1768490260058,0.04890495,143.9,143.83,82.12]
[1768490260454,0.04890495,143.9,143.78,102.9243269]
[1768490260649,3.06805799,143.9,143.81,6.2598]
[1768490260845,3.01915304,143.9,143.78,97.3953]
[1768490261047,3.01915304,143.9,143.79,82.12]
[1768490261244,0.05011415,143.85,143.79,82.12]
[1768490261442,0.05011415,143.85,143.83,0.0447705]
[1768490261643,0.05011415,143.85,143.74,97.4258]
[1768490261852,3.01915304,143.88,143.77,82.12]
[1768490262249,3.01915304,143.86,143.77,6.2615]
[1768490262951,0.04454055,143.83,143.8,0.04588907]
[1768490265549,6.2573,143.88,143.8,0.04588907]
[1768490266049,3.01915304,143.89,143.8,6.30628907]
[1768490266546,3.01915304,143.89,143.8,6.2604]
[1768490266747,0.04856095,143.86,143.8,6.2604]
[1768490268248,100.29805304,143.96,143.82,97.42492948]
[1768490268451,11.68916209,143.95,143.82,97.42492948]
[1768490268653,3.01915304,143.96,143.87,6.2573]
[1768490269260,3.01915304,143.96,143.85,82.16]
[1768490269261,3.01915304,143.96,143.85,179.5093]
[1768490269449,0.04932921,143.93,143.9,0.0494162]
[1768490270059,0.04932921,143.93,143.86,88.4178]
[1768490270556,0.04932921,143.93,143.87,6.2573]
[1768490271358,0.04932921,143.93,143.86,179.5027]
[1768490271753,0.04932921,143.93,143.88,0.04769666]
[1768490272456,88.413,143.98,143.88,0.04769666]
[1768490272661,88.413,143.98,143.87,97.3362]
[1768490272662,6.253,143.98,143.87,97.3362]
[1768490272960,85.22737726,144.02,143.89,97.3222]
[1768490273162,85.22737726,144.02,143.9,97.3189]
[1768490273360,3.08737726,144.01,143.93,6.2547]
[1768490273661,0.05225428,143.97,143.95,0.05178067]
[1768490273864,3.08737726,144.01,143.95,0.05178067]
[1768490274861,9.33767726,144.04,143.95,6.30548067]
[1768490275159,3.08737726,144.04,143.93,97.2955]
[1768490275362,3.08737726,144.04,143.96,6.2534]
[1768490276663,0.05191451,144.01,143.99,0.04968983]
[1768490277159,3.13929177,144.01,143.89,97.3222]
[1768490277354,3.08737726,144.01,143.9,82.14]
[1768490278055,3.08737726,143.99,143.87,5.5290269]
[1768490278257,3.08737726,143.99,143.86,194.6837]
[1768490278258,0.05322721,143.97,143.86,194.6837]
[1768490278462,3.08737726,143.99,143.86,276.8037]
[1768490278663,0.04436718,143.93,143.9,0.04629752]
[1768490278858,0.04436718,143.93,143.86,276.8037]
[1768490279158,3.08737726,143.99,143.9,0.05160108]
[1768490279159,6.2529,143.98,143.9,0.05160108]
[1768490279357,6.2529,143.98,143.89,6.2563]
[1768490279559,9.34027726,143.98,143.89,6.2563]
[1768490280260,9.34027726,143.98,143.92,0.04514558]
[1768490280454,3.08737726,143.98,143.92,0.04514558]
[1768490280661,3.13960591,143.96,143.81,102.9071269]
[1768490280858,3.08737726,143.95,143.83,179.4857]
[1768490281164,3.08737726,143.95,143.84,97.3575]
[1768490281460,9.34157726,143.95,143.83,179.4857]
[1768490281762,0.0445461,143.9,143.83,179.4857]
[1768490281965,0.0445461,143.9,143.85,6.258]
[1768490282162,0.0445461,143.9,143.82,82.12]
[1768490282568,3.08737726,143.92,143.86,0.05215377]
[1768490282962,9.34277726,143.92,143.86,0.05215377]
[1768490283767,6.2547,143.94,143.86,0.05215377]
[1768490283961,0.04968429,143.9,143.86,0.05215377]
[1768490284262,0.04968429,143.9,143.87,0.04871061]
[1768490285055,0.04968429,143.9,143.83,88.3789]
[1768490285862,0.04968429,143.9,143.83,6.2589]
[1768490286057,9.39336155,143.9,143.81,6.2599]
[1768490286365,9.34367726,143.9,143.81,6.2599]
[1768490286564,0.05298796,143.87,143.81,6.2599]
[1768490286767,0.05298796,143.87,143.79,6.2608]
[1768490286970,3.14036522,143.87,143.75,97.4152]
[1768490287158,3.08737726,143.87,143.76,82.14]
[1768490287358,0.05075299,143.82,143.76,88.4019]
[1768490287864,0.05075299,143.82,143.76,6.2619]
[1768490289772,0.05075299,143.82,143.78,0.04861951]
[1768490291275,3.13813025,143.82,143.68,97.4666]
[1768490291567,9.34807726,143.8,143.69,82.16]
[1768490291778,3.08737726,143.79,143.69,82.16]
[1768490291964,3.08737726,143.77,143.69,82.16]
[1768490292568,0.04507651,143.74,143.69,82.16]
[1768490293670,6.2612,143.79,143.7,6.2647]
[1768490293874,3.08737726,143.83,143.7,97.4538]
[1768490294274,3.08737726,143.83,143.71,97.4446]
[1768490294872,3.08737726,143.83,143.76,0.04794851]
[1768490294873,0.04474082,143.78,143.76,0.04794851]
[1768490295072,0.04474082,143.78,143.69,179.6169]
[1768490295274,3.08737726,143.83,143.7,97.4522]
[1768490295777,82.16,143.85,143.72,97.4379]
[1768490296368,0.04421044,143.8,143.72,97.4379]
[1768490296775,0.04421044,143.8,143.75,0.05325734]
[1768490298282,6.2589,143.84,143.75,6.31585734]
[1768490298467,6.2595,143.83,143.75,6.31585734]
[1768490298773,6.2595,143.83,143.74,82.18]
[1768490298977,3.08737726,143.84,143.73,6.2633]
[1768490299275,3.08737726,143.84,143.74,82.18]
[1768490299474,0.05217857,143.8,143.74,82.18]
[1768490299877,3.08737726,143.84,143.76,0.0530018]
[1768490300772,3.08737726,143.84,143.71,88.4442]
[1768490300976,97.35,143.86,143.71,82.18]
[1768490300977,3.06185948,143.82,143.71,82.18]
[1768490301278,3.06185948,143.82,143.73,6.2634]
[1768490301871,0.04587375,143.79,143.76,0.04790193]
[1768490305484,9.33914408,143.85,143.76,0.04790193]
[1768490305984,3.08044408,143.85,143.75,97.4196]
[1768490306289,3.08044408,143.85,143.74,97.4238]
[1768490306577,0.04629404,143.81,143.74,97.4238]
[1768490306782,0.04629404,143.81,143.78,0.04684021]
[1768490307180,6.2585,143.85,143.78,0.04684021]
[1768490307577,85.26044408,143.88,143.78,0.04684021]
[1768490307773,5.4446803,143.87,143.77,6.2617]
[1768490307978,3.08044408,143.87,143.77,6.2617]
[1768490308284,9.33884408,143.85,143.77,6.2617]
[1768490308478,0.05160517,143.83,143.75,6.2623]
[1768490308672,9.33884408,143.85,143.75,6.2623]
[1768490308874,6.2589,143.84,143.75,6.2623]
[1768490309280,3.08044408,143.84,143.75,6.2623]
[1768490309491,0.05123274,143.81,143.73,82.2]
[1768490310680,0.05123274,143.81,143.75,6.2626]
[1768490310890,0.05123274,143.81,143.73,82.2]
[1768490311578,0.05123274,143.81,143.74,6.263]
[1768490311885,6.2598,143.82,143.76,0.05305909]
[1768490312085,0.05005061,143.79,143.76,0.05305909]
[1768490312389,3.08044408,143.84,143.76,0.05305909]
[1768490313482,3.08044408,143.84,143.78,6.2613]
[1768490313674,9.33944408,143.84,143.73,97.4307]
[1768490314080,0.04773412,143.8,143.77,0.04591803]
[1768490314388,0.04773412,143.8,143.77,6.30761803]
[1768490314587,9.33944408,143.84,143.77,6.30761803]
[1768490316088,0.04844618,143.82,143.78,6.2613]
[1768490316684,0.04844618,143.82,143.77,0.04591803]
[1768490317080,0.04844618,143.82,143.77,6.30761803]
[1768490317289,0.04844618,143.82,143.77,0.04591803]
[1768490318093,3.12889026,143.82,143.77,0.04591803]
[1768490318584,9.38869026,143.82,143.77,0.04591803]
[1768490319980,3.12889026,143.82,143.77,0.04591803]
[1768490320183,0.04844618,143.82,143.77,0.04591803]
[1768490321690,0.04844618,143.82,143.79,6.2609]
[1768490322392,3.08044408,143.87,143.8,6.2604]
[1768490322593,5.46716711,143.86,143.8,6.2604]
[1768490322887,3.08044408,143.86,143.78,6.261]
[1768490323288,8.54939367,143.85,143.78,6.261]
[1768490323489,3.08044408,143.85,143.78,6.261]
[1768490323792,9.33884408,143.85,143.8,0.04552122]
[1768490324090,3.08044408,143.88,143.8,0.04552122]
[1768490324291,0.05208094,143.84,143.8,0.04552122]
[1768490324484,0.05208094,143.84,143.79,6.2609]
[1768490324684,0.05208094,143.84,143.77,6.2616]
[1768490324888,3.08044408,143.86,143.77,6.2616]
[1768490325088,8.55373598,143.85,143.77,6.2616]
[1768490325283,6.2585,143.85,143.77,6.2616]
[1768490325482,6.2585,143.85,143.75,82.2]
[1768490325483,3.08044408,143.84,143.75,6.2623]
[1768490325693,3.08044408,143.84,143.72,179.6375]
[1768490325884,0.04968595,143.81,143.78,0.04622522]
[1768490326190,0.04968595,143.81,143.74,6.2629]
[1768490326396,3.08044408,143.84,143.72,179.6372]
[1768490326585,6.2587,143.85,143.73,97.434]
[1768490327189,5.4822911,143.84,143.74,97.4266]
[1768490327389,3.08044408,143.87,143.78,0.04818458]
[1768490327595,8.56379806,143.86,143.74,97.4266]
[1768490327799,5.48335398,143.85,143.76,97.4128]
[1768490327993,3.08044408,143.89,143.76,97.4128]
[1768490328188,5.51141368,143.88,143.81,6.26]
[1768490328393,5.51141368,143.87,143.81,6.26]
[1768490328586,0.05099635,143.86,143.83,0.0508219]
[1768490329293,3.08044408,143.92,143.83,0.0508219]
[1768490329493,5.51470871,143.91,143.83,0.0508219]
[1768490329694,5.51470871,143.9,143.82,6.2595]
[1768490329900,5.51470871,143.89,143.8,6.2602]
[1768490330295,5.51470871,143.89,143.83,0.04455811]
[1768490330490,6.2572,143.88,143.83,0.04455811]
[1768490330693,5.51470871,143.87,143.83,0.04455811]
[1768490331093,3.08044408,143.89,143.83,0.04455811]
[1768490331289,5.51923781,143.88,143.83,0.04455811]
[1768490331495,5.51923781,143.87,143.83,0.04455811]
[1768490331698,9.33714408,143.89,143.83,0.04455811]
[1768490331900,5.52206982,143.88,143.83,0.04455811]
[1768490332193,5.52206982,143.87,143.83,0.04455811]
[1768490332401,3.08044408,143.89,143.83,0.04455811]
[1768490332593,3.17172894,143.93,143.84,6.2587]
[1768490332792,8.69349986,143.92,143.84,6.2587]
[1768490332993,5.52177092,143.91,143.8,179.5629]
[1768490333197,5.52177092,143.91,143.83,6.2591]
[1768490333804,5.52177092,143.91,143.86,0.05259699]
[1768490334102,0.04498394,143.88,143.86,0.05259699]
[1768490334698,9.42722894,143.92,143.86,0.05259699]
[1768490334898,9.822e-05,143.91,143.86,0.05259699]
[1768490335101,3.17172894,143.95,143.84,97.3556]
[1768490335706,3.17172894,143.95,143.87,6.2573]
[1768490335894,3.17172894,143.95,143.88,0.04477428]
[1768490337095,0.0517979,143.93,143.88,0.04477428]
[1768490337907,3.22352684,143.93,143.82,179.5492]
[1768490338105,3.17172894,143.93,143.82,179.5492]
[1768490338809,9.42672894,143.93,143.84,6.2585]
[1768490339003,9.42672894,143.93,143.86,0.0523764]
[1768490339203,3.17172894,143.92,143.86,0.0523764]
[1768490339498,3.17172894,143.92,143.82,82.18]
[1768490339704,0.04617613,143.9,143.82,82.18]
[1768490340411,3.17172894,143.95,143.85,97.3518]
[1768490340711,3.17172894,143.94,143.86,6.2576]
[1768490341308,9.42622894,143.94,143.86,6.2576]
[1768490341504,3.17172894,143.93,143.82,97.3695]
[1768490341705,3.17172894,143.93,143.83,82.16]
[1768490341912,9.42712894,143.92,143.83,82.16]
[1768490342214,3.17172894,143.91,143.82,6.2593]
[1768490342613,3.17172894,143.91,143.8,179.5429]
[1768490342614,3.17172894,143.91,143.81,97.3783]
[1768490342814,3.17172894,143.97,143.84,97.358]
[1768490343019,9.42512894,143.97,143.85,179.56457795]
[1768490343319,3.17172894,143.97,143.9,6.2561]
[1768490343515,82.16,143.99,143.88,97.3315]
[1768490344112,82.16,143.99,143.92,0.04986532]